bitfinex/quotes_BTCUSD_20260103
["timestamp","ask_amount","ask_price","bid_price","bid_amount"]
[1767405015432,0.01039863,90202.0,90197.0,0.01108684]
[1767405015634,0.02395843,90201.0,90197.0,0.01108684]
[1767405015952,0.02395843,90200.0,90197.0,0.01108684]
[1767405016115,0.02395843,90199.0,90197.0,0.01108684]
[1767405016315,0.0110861,90203.0,90199.0,0.000999]
[1767405016631,0.03435709,90202.0,90197.0,0.01108684]
[1767405016856,0.02395845,90201.0,90197.0,0.01108684]
[1767405017055,0.02395845,90200.0,90198.0,0.01108672]
[1767405017282,0.02395845,90199.0,90198.0,0.01108672]
[1767405017476,0.0110861,90203.0,90199.0,0.000394]
[1767405017685,0.03435712,90202.0,90197.0,0.01108684]
[1767405018010,0.02395847,90201.0,90197.0,0.01108684]
[1767405018169,0.02395847,90202.0,90197.0,0.01108684]
[1767405018374,0.02395847,90201.0,90197.0,0.01108684]
[1767405018582,0.02395847,90200.0,90197.0,0.01108684]
[1767405018781,0.02395847,90199.0,90197.0,0.01108684]
[1767405018986,0.0110861,90203.0,90197.0,0.01108684]
[1767405019190,0.03435716,90202.0,90197.0,0.01108684]
[1767405019508,0.13069459,90204.0,90198.0,0.00554133]
[1767405019509,0.0239585,90201.0,90198.0,0.00554133]
[1767405019736,0.0239585,90200.0,90198.0,0.00554133]
[1767405019912,0.0239585,90199.0,90198.0,0.00554133]
[1767405020051,0.0239585,90203.0,90198.0,0.00554133]
[1767405020255,0.0102464,90202.0,90196.0,0.06652138]
[1767405020508,0.0239585,90201.0,90196.0,0.06652138]
[1767405020716,0.0239585,90200.0,90198.0,0.01108672]
[1767405020859,0.0239585,90199.0,90197.0,0.01108684]
[1767405021063,0.0110861,90203.0,90197.0,0.01108684]
[1767405021271,0.03420487,90202.0,90197.0,0.01108684]
[1767405021464,0.02395847,90201.0,90197.0,0.01108684]
[1767405021670,0.02395847,90200.0,90197.0,0.01108684]
[1767405021929,0.02395847,90199.0,90197.0,0.01108684]
[1767405022127,0.0110861,90203.0,90197.0,0.01108684]
[1767405022302,0.03420425,90202.0,90197.0,0.01108684]
[1767405022489,0.02395806,90201.0,90197.0,0.01108684]
[1767405022690,0.02395806,90200.0,90197.0,0.01108684]
[1767405022886,0.02395806,90199.0,90197.0,0.01108684]
[1767405023095,0.0110861,90203.0,90197.0,0.01104272]
[1767405023298,0.03420407,90202.0,90197.0,0.01104272]
[1767405023497,0.02395788,90201.0,90197.0,0.01104272]
[1767405023705,0.02395788,90200.0,90197.0,0.01104272]
[1767405023904,0.02395788,90199.0,90197.0,0.01104272]
[1767405024107,0.0110861,90203.0,90197.0,0.01104272]
[1767405024309,0.03420386,90202.0,90197.0,0.01104272]
[1767405024493,0.02395776,90201.0,90197.0,0.01104272]
[1767405024694,0.02395776,90200.0,90197.0,0.01104272]
[1767405024918,0.02395776,90199.0,90196.0,0.06652138]
[1767405025167,0.0110861,90203.0,90197.0,0.01108684]
[1767405025371,0.03420372,90202.0,90197.0,0.01108684]
[1767405025543,0.02395765,90201.0,90197.0,0.01108684]
[1767405025745,0.02395765,90200.0,90197.0,0.01108684]
[1767405025948,0.02395765,90199.0,90197.0,0.01108684]
[1767405026115,0.0110861,90203.0,90199.0,0.000394]
[1767405026317,0.02395759,90202.0,90197.0,0.01108684]
[1767405026539,0.03504381,90202.0,90197.0,0.01108684]
[1767405026715,0.02395759,90201.0,90197.0,0.01108684]
[1767405026951,0.02395759,90200.0,90197.0,0.01108684]
[1767405027160,0.02395759,90199.0,90197.0,0.01108684]
[1767405027365,0.0110861,90203.0,90197.0,0.01108684]
[1767405027563,0.04792902,90201.0,90195.0,0.06652207]
[1767405027762,0.04792902,90201.0,90194.0,0.06642285]
[1767405028496,0.04792902,90201.0,90195.0,0.05543499]
[1767405028791,0.04792902,90201.0,90196.0,0.01108696]
[1767405029148,0.04792902,90201.0,90197.0,0.01108684]
[1767405029664,0.0110861,90203.0,90197.0,0.01108684]
[1767405029866,0.02395745,90202.0,90197.0,0.01108684]
[1767405030195,0.02395745,90202.0,90198.0,0.04719742]
[1767405032645,0.03504367,90202.0,90198.0,0.04719742]
[1767405032846,0.02395745,90201.0,90198.0,0.04719742]
[1767405033467,0.01108622,90202.0,90198.0,0.04719742]
[1767405033690,0.02395741,90201.0,90198.0,0.04719742]
[1767405034097,0.0110861,90203.0,90198.0,0.04719742]
[1767405034422,0.02395741,90202.0,90198.0,0.04719742]
[1767405035251,0.02395741,90202.0,90198.0,0.05828414]
[1767405035686,0.02395741,90202.0,90197.0,0.01108684]
[1767405036070,0.02395741,90202.0,90197.0,0.05828426]
[1767405037767,0.02395741,90202.0,90199.0,0.04719742]
[1767405037973,0.13069459,90204.0,90199.0,0.04659221]
[1767405037974,0.02395741,90201.0,90199.0,0.04659221]
[1767405038308,0.02395741,90200.0,90199.0,0.04659221]
[1767405038537,0.0110861,90203.0,90197.0,0.05828426]
[1767405038538,0.02395741,90202.0,90197.0,0.05828426]
[1767405038657,0.02395741,90201.0,90197.0,0.05828426]
[1767405038859,0.0110861,90203.0,90197.0,0.01108684]
[1767405039891,0.0110861,90203.0,90198.0,0.01108672]
[1767405040592,0.13069459,90204.0,90199.0,0.01108659]
[1767405040718,0.0096933,90203.0,90198.0,0.01108672]
[1767405040922,0.0110861,90203.0,90197.0,0.01108684]
[1767405044261,0.0110861,90203.0,90198.0,0.01108672]
[1767405044457,0.13069459,90204.0,90198.0,0.01108672]
[1767405044695,0.02077937,90203.0,90198.0,0.01108672]
[1767405044941,0.0110861,90203.0,90197.0,0.01108684]
[1767405045114,0.13069459,90204.0,90198.0,0.01108672]
[1767405045318,0.00969327,90203.0,90198.0,0.01108672]
[1767405045510,0.0110861,90203.0,90198.0,0.01108672]
[1767405045653,0.13069459,90204.0,90198.0,0.01108672]
[1767405045854,0.00969327,90203.0,90198.0,0.01108672]
[1767405046064,0.0110861,90203.0,90198.0,0.01108672]
[1767405046637,0.13069459,90204.0,90198.0,0.01108672]
[1767405046935,0.00969329,90203.0,90198.0,0.01108672]
[1767405047101,0.13069459,90204.0,90198.0,0.01108672]
[1767405047299,0.00969329,90203.0,90198.0,0.01108672]
[1767405047562,0.13069459,90204.0,90198.0,0.01108672]
[1767405047860,0.00969331,90203.0,90198.0,0.01108672]
[1767405048019,0.13069459,90204.0,90198.0,0.01108672]
[1767405048201,0.00969331,90203.0,90198.0,0.01108672]
[1767405048400,0.13069459,90204.0,90198.0,0.01108672]
[1767405048619,0.00969335,90203.0,90198.0,0.01108672]
[1767405048824,0.13069459,90204.0,90198.0,0.01108672]
[1767405049020,0.00969335,90203.0,90198.0,0.01108672]
[1767405049337,0.13069459,90204.0,90198.0,0.01108672]
[1767405049506,0.00969339,90203.0,90198.0,0.01108672]
[1767405049709,0.13069459,90204.0,90198.0,0.01108672]
[1767405049944,0.00969339,90203.0,90198.0,0.01108672]
[1767405050146,0.13069459,90204.0,90198.0,0.01108672]
[1767405050360,0.00969343,90203.0,90198.0,0.01108672]
[1767405050555,0.13069459,90204.0,90198.0,0.01108672]
[1767405050762,0.00969343,90203.0,90198.0,0.01108672]
[1767405050929,0.02395752,90202.0,90198.0,0.01108672]
[1767405051123,0.02395752,90201.0,90198.0,0.01108672]
[1767405051325,0.02395752,90200.0,90198.0,0.01108672]
[1767405051521,0.13069459,90204.0,90198.0,0.01108672]
[1767405051726,0.03365095,90203.0,90198.0,0.01108672]
[1767405051966,0.02395752,90202.0,90198.0,0.01108672]
[1767405052142,0.02395752,90201.0,90198.0,0.01108672]
[1767405052369,0.02395752,90200.0,90198.0,0.01108672]
[1767405052556,0.13069459,90204.0,90198.0,0.01108672]
[1767405052751,0.03365094,90203.0,90198.0,0.01108672]
[1767405052933,0.02395751,90202.0,90198.0,0.01108672]
[1767405053136,0.02395751,90201.0,90198.0,0.01108672]
[1767405053338,0.02395751,90200.0,90198.0,0.01108672]
[1767405053664,0.13069459,90204.0,90198.0,0.01108672]
[1767405053859,0.04473703,90203.0,90198.0,0.01108672]
[1767405054044,0.0239575,90202.0,90198.0,0.01108672]
[1767405054579,0.0239575,90201.0,90198.0,0.01108672]
[1767405054898,0.0239575,90200.0,90197.0,0.01108684]
[1767405055075,0.0110861,90203.0,90197.0,0.01108684]
[1767405055286,0.02395749,90202.0,90197.0,0.01108684]
[1767405058148,0.03504371,90202.0,90197.0,0.01108684]
[1767405058405,0.02395749,90201.0,90197.0,0.01108684]
[1767405060094,0.02395749,90200.0,90197.0,0.01108684]
[1767405060261,0.01108622,90202.0,90197.0,0.01108684]
[1767405060470,0.02395763,90201.0,90197.0,0.01108684]
[1767405060663,0.0110861,90203.0,90197.0,0.01108684]
[1767405060664,0.02395763,90200.0,90197.0,0.01108684]
[1767405060863,0.0110861,90203.0,90197.0,0.01108684]
[1767405061028,0.02395763,90202.0,90197.0,0.01108684]
[1767405062276,0.02395763,90202.0,90195.0,0.06652207]
[1767405062431,0.02395763,90202.0,90196.0,0.01108696]
[1767405062646,0.02395763,90202.0,90197.0,0.01108684]
[1767405064513,0.03504385,90202.0,90196.0,0.01108696]
[1767405064671,0.02395763,90201.0,90197.0,0.01108684]
[1767405065079,0.02395763,90200.0,90197.0,0.01108684]
[1767405065284,0.01108622,90202.0,90196.0,0.01108696]
[1767405065482,0.0239579,90201.0,90197.0,0.01108684]
[1767405065680,0.0239579,90200.0,90197.0,0.01108684]
[1767405065896,0.01108622,90202.0,90196.0,0.01108696]
[1767405066096,0.0239579,90201.0,90197.0,0.01108684]
[1767405066526,0.0239579,90200.0,90197.0,0.01108684]
[1767405066728,0.0110861,90203.0,90197.0,0.01108684]
[1767405066926,0.023958,90202.0,90197.0,0.01108684]
[1767405068800,0.023958,90202.0,90198.0,0.01108672]
[1767405069013,0.023958,90202.0,90198.0,0.0110426]
[1767405069225,0.023958,90201.0,90198.0,0.0110426]
[1767405069434,0.023958,90200.0,90198.0,0.0110426]
[1767405069634,0.0110861,90203.0,90198.0,0.0110426]
[1767405069874,0.02395827,90202.0,90198.0,0.0110426]
[1767405070051,0.02395827,90201.0,90198.0,0.0110426]
[1767405070265,0.02395827,90200.0,90198.0,0.0110426]
[1767405070466,0.13069459,90204.0,90198.0,0.0110426]
[1767405070649,0.03362439,90203.0,90198.0,0.0110426]
[1767405070852,0.02395843,90202.0,90198.0,0.0110426]
[1767405071164,0.02395843,90201.0,90198.0,0.0110426]
[1767405071330,0.02395843,90200.0,90198.0,0.0110426]
[1767405071562,0.13069459,90204.0,90198.0,0.0110426]
[1767405071794,0.03362436,90203.0,90198.0,0.0110426]
[1767405071994,0.02395841,90202.0,90198.0,0.0110426]
[1767405072196,0.02395841,90201.0,90198.0,0.0110426]
[1767405072391,0.02395841,90200.0,90197.0,0.01108684]
[1767405072592,0.0110861,90203.0,90198.0,0.01108672]
[1767405072889,0.0239584,90202.0,90197.0,0.01108684]
[1767405073680,0.03504462,90202.0,90196.0,0.01108696]
[1767405073883,0.0239584,90201.0,90197.0,0.01108684]
[1767405074129,0.0239584,90200.0,90197.0,0.01108684]
[1767405074330,0.11960861,90204.0,90198.0,0.01108672]
[1767405074509,0.03362435,90203.0,90199.0,0.01108659]
[1767405074705,0.0239584,90202.0,90199.0,0.01108659]
[1767405074927,0.04662256,90200.0,90197.0,0.05543381]
[1767405075135,0.04662256,90200.0,90197.0,0.02246553]
[1767405075335,0.13069459,90204.0,90198.0,0.01108672]
[1767405075484,0.03362434,90203.0,90199.0,0.04959604]
[1767405075690,0.02395839,90202.0,90199.0,0.04959604]
[1767405076528,0.13069459,90204.0,90199.0,0.04959604]
[1767405076730,0.03362432,90203.0,90199.0,0.04959604]
[1767405076927,0.02395838,90202.0,90199.0,0.04959604]
[1767405077128,0.13069459,90204.0,90199.0,0.04959604]
[1767405077349,0.03362432,90203.0,90199.0,0.04959604]
[1767405077554,0.02395838,90202.0,90199.0,0.04959604]
[1767405077778,0.13069459,90204.0,90199.0,0.04959604]
[1767405077990,0.03362429,90203.0,90199.0,0.04959604]
[1767405078146,0.02395835,90202.0,90199.0,0.04959604]
[1767405078349,0.13069459,90204.0,90199.0,0.04959604]
[1767405078554,0.03362426,90203.0,90199.0,0.04959604]
[1767405078914,0.02395833,90202.0,90199.0,0.04959604]
[1767405079154,0.13069459,90204.0,90199.0,0.04959604]
[1767405079300,0.03362425,90203.0,90199.0,0.04959604]
[1767405079502,0.02395833,90202.0,90199.0,0.06068263]
[1767405079703,0.13069459,90204.0,90199.0,0.06068263]
[1767405079868,0.03361034,90203.0,90199.0,0.04959604]
[1767405080069,0.02395831,90202.0,90199.0,0.04959604]
[1767405080270,0.13069459,90204.0,90199.0,0.04959604]
[1767405080553,0.04469643,90203.0,90199.0,0.04959604]
[1767405080753,0.0239583,90202.0,90199.0,0.04859704]
[1767405084519,0.03504452,90202.0,90199.0,0.04859704]
[1767405084719,0.01108622,90202.0,90199.0,0.04859704]
[1767405084920,0.02395826,90201.0,90199.0,0.04859704]
[1767405086065,0.02395826,90201.0,90194.0,0.0554357]
[1767405086066,0.01108659,90199.0,90193.0,0.04959604]
[1767405086383,0.01108659,90199.0,90193.0,0.06068337]
[1767405086613,0.01108672,90198.0,90193.0,0.04959604]
[1767405086764,0.01108635,90201.0,90193.0,0.06068337]
[1767405086947,0.01108659,90199.0,90195.0,0.04959604]
[1767405087491,0.01108647,90200.0,90195.0,0.04959604]
[1767405087642,0.01108659,90199.0,90195.0,0.04959604]
[1767405089193,0.01108672,90198.0,90195.0,0.04959604]
[1767405089751,0.01108672,90198.0,90192.0,0.04906401]
[1767405089752,0.01108708,90195.0,90192.0,0.04906401]
[1767405089953,0.06652151,90197.0,90192.0,0.06015146]
[1767405089954,0.01108684,90197.0,90192.0,0.06015146]
[1767405090407,0.01108672,90198.0,90192.0,0.04906401]
[1767405090782,0.01108672,90198.0,90194.0,0.04906401]
[1767405092083,0.01108672,90198.0,90194.0,0.04896403]
[1767405093217,0.01108684,90197.0,90194.0,0.04896403]
[1767405093370,0.01108672,90198.0,90194.0,0.04896403]
[1767405094027,0.01108659,90199.0,90194.0,0.04896403]
[1767405094255,0.01108672,90198.0,90194.0,0.04896403]
[1767405099720,0.01108672,90198.0,90192.0,0.01108]
[1767405099921,0.01108659,90199.0,90193.0,0.01108733]
[1767405100522,0.01108672,90198.0,90192.0,0.02216745]
[1767405101263,0.01108684,90197.0,90192.0,0.01108]
[1767405101423,0.01108672,90198.0,90192.0,0.02216745]
[1767405102147,0.01108659,90199.0,90193.0,0.01108733]
[1767405102342,0.01108672,90198.0,90192.0,0.02216745]
[1767405102763,0.01108672,90198.0,90192.0,0.01108745]
[1767405103674,0.01108672,90198.0,90193.0,0.01108733]
[1767405103869,0.01108672,90198.0,90192.0,0.01108745]
[1767405105670,0.01108684,90197.0,90192.0,0.01108745]
[1767405105888,0.01108672,90198.0,90192.0,0.01108745]
[1767405106537,0.01108684,90197.0,90192.0,0.01108745]
[1767405106742,0.01108696,90196.0,90191.0,0.01108]
[1767405107054,0.01108684,90197.0,90191.0,0.02216758]
[1767405107257,0.01108672,90198.0,90192.0,0.01108745]
[1767405107567,0.01108672,90198.0,90192.0,0.01104333]
[1767405108102,0.01108672,90198.0,90193.0,0.01108733]
[1767405108272,0.01108659,90199.0,90193.0,0.01108733]
[1767405109142,0.01108672,90198.0,90192.0,0.01104333]
[1767405109910,0.01108684,90197.0,90192.0,0.01104333]
[1767405110224,0.01108684,90197.0,90192.0,0.01108745]
[1767405110430,0.01108672,90198.0,90192.0,0.01108745]
[1767405111148,0.01108696,90196.0,90191.0,0.01108]
[1767405111312,0.01108708,90195.0,90191.0,0.01108]
[1767405111513,0.01108696,90196.0,90191.0,0.01108]
[1767405111880,0.01108708,90195.0,90191.0,0.01108]
[1767405112047,0.01108708,90195.0,90190.0,0.06025169]
[1767405112247,0.01108696,90196.0,90191.0,0.04916399]
[1767405112417,0.01108684,90197.0,90191.0,0.06025157]
[1767405113359,0.01108696,90196.0,90191.0,0.04916399]
[1767405113757,0.01108708,90195.0,90191.0,0.04916399]
[1767405113960,0.01108635,90201.0,90191.0,0.06025157]
[1767405114160,0.01108659,90199.0,90193.0,0.01108733]
[1767405114320,0.01108672,90198.0,90193.0,0.01108733]
[1767405114525,0.01108659,90199.0,90193.0,0.01108733]
[1767405114929,0.01108672,90198.0,90193.0,0.01108733]
[1767405115111,0.01108672,90198.0,90192.0,0.01108745]
[1767405115338,0.01108672,90198.0,90193.0,0.01108733]
[1767405115543,0.01108659,90199.0,90193.0,0.01108733]
[1767405116316,0.01108672,90198.0,90192.0,0.01108745]
[1767405117800,0.01108684,90197.0,90191.0,0.06025157]
[1767405117998,0.01108684,90197.0,90192.0,0.05974865]
[1767405118196,0.01108696,90196.0,90191.0,0.02216758]
[1767405118398,0.01108672,90198.0,90191.0,0.01108]
[1767405118700,0.01108684,90197.0,90191.0,0.02216758]
[1767405119486,0.01108684,90197.0,90192.0,0.01108745]
[1767405119684,0.01108672,90198.0,90192.0,0.01108745]
[1767405120093,0.01108684,90197.0,90191.0,0.01108758]
[1767405120274,0.01108672,90198.0,90192.0,0.01108745]
[1767405120490,0.01108659,90199.0,90193.0,0.01108733]
[1767405121667,0.06651884,90200.0,90194.0,0.01108721]
[1767405121833,0.01108647,90200.0,90194.0,0.01108721]
[1767405122016,0.01108659,90199.0,90193.0,0.01108733]
[1767405124480,0.01108659,90199.0,90194.0,0.01108721]
[1767405124711,0.01108659,90199.0,90193.0,0.01108733]
[1767405125943,0.01108647,90200.0,90194.0,0.01108721]
[1767405126182,0.01108635,90201.0,90195.0,0.0109871]
[1767405126397,0.03504461,90200.0,90194.0,0.01108721]
[1767405126615,0.01108647,90200.0,90194.0,0.01108721]
[1767405127221,0.01108659,90199.0,90193.0,0.01108733]
[1767405127966,0.01108672,90198.0,90192.0,0.01108745]
[1767405128150,0.01108659,90199.0,90193.0,0.01108733]
[1767405129228,0.01108672,90198.0,90192.0,0.01108745]
[1767405132289,0.01108659,90199.0,90192.0,0.01108745]
[1767405132684,0.01108672,90198.0,90192.0,0.01108745]
[1767405132891,0.01108659,90199.0,90193.0,0.01108733]
[1767405133230,0.01108672,90198.0,90192.0,0.01108745]
[1767405133431,0.01108672,90198.0,90193.0,0.01108733]
[1767405133871,0.01108659,90199.0,90193.0,0.01108733]
[1767405134398,0.01108672,90198.0,90192.0,0.01108745]
[1767405134981,0.01108659,90199.0,90193.0,0.01108733]
[1767405135257,0.01108672,90198.0,90192.0,0.01108745]
[1767405135662,0.01108684,90197.0,90189.0,0.01108782]
[1767405135868,0.01108684,90197.0,90191.0,0.01108758]
[1767405136269,0.01108684,90197.0,90192.0,0.01108745]
[1767405137235,0.01108672,90198.0,90192.0,0.01108745]
[1767405137592,0.01108659,90199.0,90192.0,0.01108745]
[1767405137754,0.01108684,90197.0,90192.0,0.01108745]
[1767405137957,0.01108672,90198.0,90192.0,0.01108745]
[1767405138559,0.01108672,90198.0,90191.0,0.01108758]
[1767405138759,0.01108672,90198.0,90192.0,0.01108745]
[1767405138986,0.01108659,90199.0,90193.0,0.01108733]
[1767405139493,0.01108659,90199.0,90192.0,0.01108745]
[1767405139701,0.01108672,90198.0,90192.0,0.01108745]
[1767405139903,0.01108672,90198.0,90193.0,0.01108733]
[1767405140100,0.01108659,90199.0,90193.0,0.01108733]
[1767405140455,0.01108672,90198.0,90192.0,0.01108745]
[1767405140692,0.01108659,90199.0,90193.0,0.01108733]
[1767405140851,0.01108647,90200.0,90194.0,0.01108721]
[1767405141054,0.01108659,90199.0,90193.0,0.01108733]
[1767405141250,0.01108659,90199.0,90194.0,0.01108721]
[1767405141457,0.01108659,90199.0,90193.0,0.01108733]
[1767405142062,0.01108659,90199.0,90194.0,0.01108721]
[1767405142233,0.01108659,90199.0,90193.0,0.01108733]
[1767405142440,0.01108647,90200.0,90194.0,0.01108721]
[1767405144484,0.01108659,90199.0,90193.0,0.01108733]
[1767405144709,0.01108647,90200.0,90194.0,0.01108721]
[1767405145042,0.01108659,90199.0,90193.0,0.01108733]
[1767405145583,0.01108659,90199.0,90194.0,0.01108721]
[1767405145782,0.01108647,90200.0,90194.0,0.01108721]
[1767405145982,0.01108659,90199.0,90194.0,0.01108721]
[1767405147021,0.01108647,90200.0,90194.0,0.01108721]
[1767405147321,0.01108659,90199.0,90193.0,0.01108733]
[1767405147532,0.01108647,90200.0,90194.0,0.01108721]
[1767405148063,0.06651937,90200.0,90192.0,0.01108745]
[1767405148237,0.06651937,90200.0,90193.0,0.01108733]
[1767405148409,0.01108659,90199.0,90193.0,0.01108733]
[1767405150036,0.01108659,90199.0,90194.0,0.01108721]
[1767405150241,0.01108647,90200.0,90194.0,0.01108721]
[1767405151342,0.01108647,90200.0,90193.0,0.01108733]
[1767405151778,0.01108647,90200.0,90194.0,0.01108721]
[1767405151976,0.01108659,90199.0,90194.0,0.01108721]
[1767405152477,0.01108672,90198.0,90193.0,0.01108733]
[1767405152642,0.01108659,90199.0,90193.0,0.01108733]
[1767405153275,0.01108659,90199.0,90194.0,0.01108721]
[1767405153477,0.01108659,90199.0,90193.0,0.01108733]
[1767405153903,0.01108659,90199.0,90194.0,0.01108721]
[1767405154114,0.01108647,90200.0,90194.0,0.01108721]
[1767405154524,0.01108647,90200.0,90193.0,0.01108733]
[1767405155709,0.01108659,90199.0,90193.0,0.00994389]
[1767405156062,0.01108672,90198.0,90192.0,0.01108745]
[1767405156256,0.01108672,90198.0,90193.0,0.01108733]
[1767405156443,0.01108659,90199.0,90193.0,0.01108733]
[1767405157067,0.01108672,90198.0,90192.0,0.01108745]
[1767405158251,0.01108672,90198.0,90193.0,0.01108733]
[1767405158447,0.01108672,90198.0,90192.0,0.01108745]
[1767405158926,0.01108659,90199.0,90193.0,0.01108733]
[1767405159134,0.01108672,90198.0,90192.0,0.01108745]
[1767405159490,0.01108659,90199.0,90192.0,0.01108745]
[1767405159898,0.01108659,90199.0,90194.0,0.01108721]
[1767405160250,0.01108659,90199.0,90193.0,0.01108733]
[1767405160578,0.01108659,90199.0,90194.0,0.01108721]
[1767405160881,0.01108647,90200.0,90194.0,0.01108721]
[1767405163609,0.01108659,90199.0,90193.0,0.01108733]
[1767405163741,0.01108659,90199.0,90194.0,0.01108721]
[1767405163943,0.01108647,90200.0,90194.0,0.01108721]
[1767405164351,0.01108647,90200.0,90192.0,0.01108745]
[1767405164583,0.01108647,90200.0,90193.0,0.01108733]
[1767405164827,0.01108647,90200.0,90192.0,0.01108745]
[1767405165053,0.01108672,90198.0,90192.0,0.01108745]
[1767405165275,0.01108672,90198.0,90191.0,0.06652508]
[1767405165509,0.01108672,90198.0,90192.0,0.01108745]
[1767405165761,0.01108684,90197.0,90191.0,0.01108758]
[1767405166013,0.01108684,90197.0,90192.0,0.01108745]
[1767405166216,0.06652157,90197.0,90189.0,0.01108]
[1767405166432,0.01108696,90196.0,90190.0,0.0110877]
[1767405166626,0.01108708,90195.0,90189.0,0.02216782]
[1767405166972,0.01108696,90196.0,90190.0,0.0110877]
[1767405167896,0.01108696,90196.0,90189.0,0.02216782]
[1767405168044,0.01108696,90196.0,90190.0,0.0110877]
[1767405168438,0.01108708,90195.0,90189.0,0.02216782]
[1767405168743,0.01108696,90196.0,90190.0,0.0110877]
[1767405168942,0.06652147,90197.0,90189.0,0.02216782]
[1767405169144,0.01108696,90196.0,90190.0,0.0110877]
[1767405169500,0.01108696,90196.0,90191.0,0.05643572]
[1767405169681,0.01108696,90196.0,90191.0,0.04534814]
[1767405169995,0.01108684,90197.0,90191.0,0.05643572]
[1767405170205,0.01108684,90197.0,90196.0,0.000999]
[1767405170340,0.01108684,90197.0,90191.0,0.05643572]
[1767405171166,0.01108684,90197.0,90192.0,0.04534814]
[1767405171330,0.01108684,90197.0,90192.0,0.05643559]
[1767405171736,0.06652089,90198.0,90192.0,0.05643559]
[1767405172167,0.01108684,90197.0,90192.0,0.04534814]
[1767405172892,0.01108696,90196.0,90192.0,0.04534814]
[1767405173240,0.01108684,90197.0,90192.0,0.04534814]
[1767405173931,0.01108696,90196.0,90192.0,0.04534814]
[1767405174070,0.01108684,90197.0,90192.0,0.04534814]
[1767405174277,0.01108696,90196.0,90192.0,0.04534814]
[1767405175102,0.01108684,90197.0,90192.0,0.04534814]
[1767405175615,0.01108696,90196.0,90192.0,0.04534814]
[1767405176093,0.01108708,90195.0,90192.0,0.04534814]
[1767405176297,0.01108696,90196.0,90192.0,0.04534814]
[1767405176930,0.01108536,90209.0,90200.0,0.04775857]
[1767405177138,0.01108549,90208.0,90201.0,0.02216635]
[1767405177489,0.01108524,90210.0,90203.0,0.0110861]
[1767405177615,0.05542551,90212.0,90203.0,0.0110861]
[1767405177616,0.01108499,90212.0,90206.0,0.01108573]
[1767405177824,0.01108512,90211.0,90205.0,0.01108585]
[1767405178055,0.01108499,90212.0,90206.0,0.01108573]
[1767405178258,0.01108499,90212.0,90205.0,0.01108585]
[1767405178761,0.01108499,90212.0,90204.0,0.01108598]
[1767405178924,0.01108512,90211.0,90205.0,0.01108585]
[1767405179524,0.01108524,90210.0,90202.0,0.01108622]
[1767405179723,0.01108536,90209.0,90202.0,0.01108622]
[1767405179930,0.01108524,90210.0,90203.0,0.0110861]
[1767405180128,0.01108512,90211.0,90205.0,0.01108585]
[1767405180859,0.01108524,90210.0,90203.0,0.0110861]
[1767405181253,0.05542517,90212.0,90204.0,0.01108598]
[1767405181467,0.01108524,90210.0,90203.0,0.0110861]
[1767405181666,0.01108536,90209.0,90203.0,0.0110861]
[1767405181869,0.01108536,90209.0,90204.0,0.01108598]
[1767405182073,0.01108512,90211.0,90203.0,0.0110861]
[1767405182304,0.01108512,90211.0,90204.0,0.01108598]
[1767405182416,0.01108524,90210.0,90204.0,0.01108598]
[1767405182621,0.01108512,90211.0,90204.0,0.01108598]
[1767405183073,0.01108475,90214.0,90206.0,0.01108573]
[1767405183221,0.06650866,90214.0,90206.0,0.01108573]
[1767405183620,0.01108487,90213.0,90206.0,0.01108573]
[1767405183836,0.01108499,90212.0,90206.0,0.01108573]
[1767405185678,0.01108499,90212.0,90205.0,0.01108585]
[1767405185886,0.01108512,90211.0,90205.0,0.01108585]
[1767405186531,0.01108499,90212.0,90206.0,0.01108573]
[1767405186739,0.01108512,90211.0,90206.0,0.01108573]
[1767405186900,0.01108512,90211.0,90204.0,0.01108598]
[1767405187107,0.01108512,90211.0,90205.0,0.01108585]
[1767405187340,0.01108499,90212.0,90206.0,0.01108573]
[1767405189784,0.01108512,90211.0,90206.0,0.01108573]
[1767405189959,0.01108512,90211.0,90205.0,0.01108585]
[1767405190166,0.01108499,90212.0,90206.0,0.01108573]
[1767405190463,0.01108499,90212.0,90204.0,0.01108598]
[1767405190464,0.01108524,90210.0,90204.0,0.01108598]
[1767405190665,0.01108512,90211.0,90205.0,0.01108585]
[1767405190862,0.01108512,90211.0,90204.0,0.01108598]
[1767405191383,0.01108524,90210.0,90203.0,0.06651612]
[1767405191541,0.01108536,90209.0,90204.0,0.01108598]
[1767405191746,0.01108524,90210.0,90204.0,0.01108598]
[1767405192182,0.01108512,90211.0,90205.0,0.01108585]
[1767405193108,0.01108512,90211.0,90206.0,0.01108573]
[1767405193566,0.01108512,90211.0,90205.0,0.01108585]
[1767405194061,0.01108524,90210.0,90205.0,0.01108585]
[1767405194267,0.01108512,90211.0,90205.0,0.01108585]
[1767405194475,0.01108499,90212.0,90207.0,0.01108561]
[1767405194699,0.01108499,90212.0,90211.0,0.000999]
[1767405195215,0.01108499,90212.0,90206.0,0.01108573]
[1767405195870,0.01108499,90212.0,90207.0,0.01108561]
[1767405196073,0.01108499,90212.0,90206.0,0.01108573]
[1767405196592,0.01108499,90212.0,90205.0,0.01108585]
[1767405196779,0.01108499,90212.0,90204.0,0.06651569]
[1767405196780,0.01108512,90211.0,90204.0,0.01108598]
[1767405197199,0.0003599,90211.0,90206.0,0.01108573]
[1767405197379,0.01144502,90211.0,90205.0,0.01108585]
[1767405197780,0.0003599,90211.0,90206.0,0.01108573]
[1767405198795,0.01144502,90211.0,90205.0,0.01108585]
[1767405198992,0.01144502,90211.0,90206.0,0.01108573]
[1767405199432,0.0003599,90211.0,90206.0,0.01108573]
[1767405199812,0.01144502,90211.0,90205.0,0.01108585]
[1767405200028,0.0003599,90211.0,90206.0,0.01108573]
[1767405200489,0.01108524,90210.0,90203.0,0.0110861]
[1767405200693,0.01108524,90210.0,90204.0,0.01108598]
[1767405200912,0.01144502,90211.0,90205.0,0.01108585]
[1767405201111,0.01144502,90211.0,90206.0,0.01108573]
[1767405201592,0.04773963,90210.0,90204.0,0.01108]
[1767405201908,0.04773963,90210.0,90205.0,0.01108585]
[1767405202104,0.01144502,90211.0,90205.0,0.01108585]
[1767405202309,0.0003599,90211.0,90205.0,0.05658069]
[1767405202526,0.0003599,90211.0,90206.0,0.05658057]
[1767405203310,0.0003599,90211.0,90207.0,0.04549484]
[1767405203521,0.0003599,90211.0,90207.0,0.05658045]
[1767405203724,0.0003599,90211.0,90207.0,0.04549484]
[1767405203925,0.0003599,90211.0,90207.0,0.05658045]
[1767405204371,0.0003599,90211.0,90207.0,0.04549484]
[1767405204551,0.01144502,90211.0,90207.0,0.04549484]
[1767405205710,0.01108524,90210.0,90207.0,0.04549484]
[1767405205997,0.01108524,90210.0,90204.0,0.02216598]
[1767405205998,0.01108536,90209.0,90204.0,0.01108]
[1767405206235,0.01108524,90210.0,90205.0,0.04549484]
[1767405207167,0.01144502,90211.0,90205.0,0.05658069]
[1767405207388,0.01108524,90210.0,90205.0,0.04549484]
[1767405207594,0.01144502,90211.0,90205.0,0.04549484]
[1767405208232,0.01144502,90211.0,90207.0,0.049078]
[1767405208697,0.01144502,90211.0,90205.0,0.01108585]
[1767405208896,0.01144502,90211.0,90160.0,0.2]
[1767405208897,0.01108684,90197.0,90189.0,0.01108782]